fUSD/lending_fUSD_20240105
["ID","MTS","AMOUNT","RATE_DAILY","PERIOD"]
[310269840,1704426661581,-208.482203,0.00036712,7]
[310269841,1704426661591,-208.482203,0.00036712,7]
[310269842,1704426661601,-1134.21734938,0.00036772,8]
[310269843,1704426661611,-234.40105,0.00036798,2]
[310269844,1704426661620,-905.7,0.000368,7]
[310269845,1704426661629,-153.08464517,0.00036825,2]
[310269846,1704426661638,-234.40105,0.00036898,2]
[310269847,1704426661647,-215.97400947,0.00036955,10]
[310269848,1704426661657,-237.25919113,0.0003696,30]
[310269849,1704426661666,-165.64,0.00036986,2]
[310269850,1704426661675,-667.98,0.00036986,3]
[310269851,1704426661684,-500.0,0.00036986,3]
[310269852,1704426661694,-500.0,0.00036986,3]
[310269853,1704426661703,-500.0,0.00036986,3]
[310269854,1704426661713,-192.50945563,0.00036986,3]
[310269855,1704426661723,-500.0,0.00036986,3]
[310269856,1704426661732,-500.0,0.00036986,3]
[310269857,1704426661742,-500.0,0.00036986,3]
[310269858,1704426661752,-500.0,0.00036986,3]
[310269859,1704426661762,-544.75697834,0.00036986,3]
[310269860,1704426661771,-500.0,0.00036986,3]
[310269861,1704426661780,-500.0,0.00036986,3]
[310269862,1704426661790,-479.18245854,0.00036986,3]
[310269863,1704426661799,-323.60495197,0.00036986,3]
[310269864,1704426661809,-500.0,0.00036986,3]
[310269865,1704426661820,-245.84506241,0.00036986,3]
[310269866,1704426661830,-500.0,0.00036986,3]
[310269867,1704426661839,-307.50739446,0.00036986,3]
[310269868,1704426661849,-500.0,0.00036986,3]
[310269869,1704426661858,-500.0,0.00036986,3]
[310269870,1704426661867,-500.0,0.00036986,3]
[310269871,1704426661877,-500.0,0.00036986,3]
[310269872,1704426661886,-500.0,0.00036986,3]
[310269873,1704426661896,-500.0,0.00036986,3]
[310269874,1704426661905,-519.26,0.00036986,3]
[310269875,1704426661914,-228.16290157,0.00036986,3]
[310269876,1704426661924,-500.0,0.00036986,3]
[310269877,1704426661933,-500.0,0.00036986,3]
[310269878,1704426661943,-500.0,0.00036986,3]
[310269879,1704426661952,-500.0,0.00036986,3]
[310269880,1704426661962,-500.0,0.00036986,3]
[310269881,1704426661971,-244.64927745,0.00036986,3]
[310269882,1704426661980,-500.0,0.00036986,3]
[310269883,1704426661990,-500.0,0.00036986,3]
[310269884,1704426662000,-524.46405489,0.00036986,3]
[310269885,1704426662010,-500.0,0.00036986,3]
[310269886,1704426662019,-500.0,0.00036986,3]
[310269887,1704426662029,-500.0,0.00036986,3]
[310269888,1704426662039,-500.0,0.00036986,3]
[310269889,1704426662048,-500.0,0.00036986,3]
[310269890,1704426662058,-500.0,0.00036986,3]
[310269891,1704426662068,-500.0,0.00036986,3]
[310269892,1704426662080,-500.0,0.00036986,3]
[310269893,1704426662089,-500.0,0.00036986,3]
[310269894,1704426662099,-500.0,0.00036986,3]
[310269895,1704426662108,-500.0,0.00036986,3]
[310269896,1704426662119,-237.83067962,0.00036986,3]
[310269897,1704426662130,-591.03,0.00036986,3]
[310269898,1704426662139,-151.64107581,0.00036986,3]
[310269899,1704426662149,-500.0,0.00036986,3]
[310269900,1704426662159,-500.0,0.00036986,3]
[310269901,1704426662168,-500.0,0.00036986,3]
[310269902,1704426662178,-500.0,0.00036986,3]
[310269903,1704426662186,-500.0,0.00036986,3]
[310269904,1704426662195,-458.44705886,0.00036986,3]
[310269905,1704426662205,-500.0,0.00036986,3]
[310269906,1704426662214,-502.6875373,0.00036986,3]
[310269907,1704426662223,-500.0,0.00036986,3]
[310269908,1704426662233,-504.25,0.00036986,3]
[310269909,1704426662242,-500.0,0.00036986,3]
[310269910,1704426662251,-500.0,0.00036986,3]
[310269911,1704426662260,-500.0,0.00036986,3]
[310269912,1704426662270,-546.06809297,0.00036986,3]
[310269913,1704426662280,-512.2823916,0.00036986,3]
[310269914,1704426662289,-500.0,0.00036986,3]
[310269915,1704426662300,-690.84,0.00036986,3]
[310269916,1704426662311,-500.0,0.00036986,3]
[310269917,1704426662321,-500.0,0.00036986,3]
[310269918,1704426662331,-500.0,0.00036986,3]
[310269919,1704426662343,-1472.06,0.00036986,3]
[310269920,1704426662354,-2696.47,0.00036986,3]
[310269921,1704426662363,-504.84,0.00036986,3]
[310269922,1704426662374,-500.0,0.00036986,3]
[310269923,1704426662383,-500.0,0.00036986,3]
[310269924,1704426662393,-3658.31,0.00036986,3]
[310269925,1704426662402,-724.31,0.00036986,3]
[310269926,1704426662413,-500.0,0.00036986,3]
[310269927,1704426662422,-3809.35,0.00036986,3]
[310269928,1704426662432,-500.0,0.00036986,3]
[310269929,1704426662587,-500.0,0.00036986,3]
[310269930,1704426662606,-2426.03,0.00036986,3]
[310269931,1704426662619,-500.0,0.00036986,3]
[310269932,1704426662629,-2276.94,0.00036986,3]
[310269933,1704426662640,-649.27,0.00036986,3]
[310269934,1704426662649,-500.0,0.00036986,3]
[310269935,1704426662659,-539.97196298,0.00036986,3]
[310269936,1704426662669,-989.21,0.00036986,3]
[310269937,1704426662678,-857.38,0.00036986,3]
[310269938,1704426662688,-500.0,0.00036986,3]
[310269939,1704426662698,-1101.54,0.00036986,3]
[310269940,1704426662707,-530.91,0.00036986,3]
[310269941,1704426662717,-500.0,0.00036986,3]
[310269942,1704426662727,-500.0,0.00036986,3]
[310269943,1704426662736,-4044.87,0.00036986,3]
[310269944,1704426662746,-628.50833752,0.00036986,3]
[310269945,1704426662755,-1525.19,0.00036986,3]
[310269946,1704426662765,-959.81,0.00036986,3]
[310269947,1704426662775,-608.2,0.00036986,3]
[310269948,1704426662785,-500.0,0.00036986,3]
[310269949,1704426662795,-1536.58,0.00036986,3]
[310269950,1704426662804,-500.0,0.00036986,3]
[310269951,1704426662813,-614.8,0.00036986,3]
[310269952,1704426662822,-617.87,0.00036986,3]
[310269953,1704426662833,-1198.95,0.00036986,3]
[310269954,1704426662842,-500.0,0.00036986,3]
[310269955,1704426662852,-622.5,0.00036986,3]
[310269956,1704426662862,-500.0,0.00036986,3]
[310269957,1704426662872,-500.0,0.00036986,3]
[310269958,1704426662882,-1617.97,0.00036986,3]
[310269959,1704426662892,-571.01,0.00036986,3]
[310269960,1704426662903,-961.92,0.00036986,3]
[310269961,1704426662913,-500.0,0.00036986,3]
[310269962,1704426662922,-500.0,0.00036986,3]
[310269963,1704426662933,-450.88285311,0.00036986,3]
[310269964,1704426662945,-504.63,0.00036986,3]
[310269965,1704426662956,-1085.34,0.00036986,3]
[310269966,1704426662965,-500.0,0.00036986,3]
[310269967,1704426662975,-500.0,0.00036986,3]
[310269968,1704426662984,-940.61,0.00036986,3]
[310269969,1704426662994,-500.0,0.00036986,3]
[310269970,1704426663004,-500.0,0.00036986,3]
[310269971,1704426663013,-674.03,0.00036986,3]
[310269972,1704426663023,-270.01569018,0.00036986,3]
[310269973,1704426663034,-500.0,0.00036986,3]
[310269974,1704426663043,-752.67,0.00036986,3]
[310269975,1704426663053,-500.0,0.00036986,3]
[310269976,1704426663062,-1972.87,0.00036986,3]
[310269977,1704426663072,-500.0,0.00036986,3]
[310269978,1704426663082,-621.19,0.00036986,3]
[310269979,1704426663091,-1403.18,0.00036986,3]
[310269980,1704426663101,-822.72,0.00036986,3]
[310269981,1704426663111,-771.9,0.00036986,3]
[310269982,1704426663121,-847.37,0.00036986,3]
[310269983,1704426663131,-500.0,0.00036986,3]
[310269984,1704426663140,-500.0,0.00036986,3]
[310269985,1704426663150,-500.0,0.00036986,3]
[310269986,1704426663160,-500.0,0.00036986,3]
[310269987,1704426663170,-500.0,0.00036986,3]
[310269988,1704426663180,-865.75,0.00036986,3]
[310269989,1704426663190,-1363.94,0.00036986,3]
[310269990,1704426663199,-4604.97,0.00036986,3]
[310269991,1704426663209,-1152.91,0.00036986,3]
[310269992,1704426663218,-500.0,0.00036986,3]
[310269993,1704426663228,-500.0,0.00036986,3]
[310269994,1704426663237,-713.57,0.00036986,3]
[310269995,1704426663246,-500.0,0.00036986,3]
[310269996,1704426663255,-833.72,0.00036986,3]
[310269997,1704426663265,-10636.52,0.00036986,3]
[310269998,1704426663274,-1032.64,0.00036986,3]
[310269999,1704426663283,-577.17,0.00036986,3]
[310270000,1704426663293,-697.16,0.00036986,3]
[310270001,1704426663302,-706.13,0.00036986,3]
[310270002,1704426663311,-500.0,0.00036986,3]
[310270003,1704426663321,-500.0,0.00036986,3]
[310270004,1704426663330,-500.0,0.00036986,3]
[310270005,1704426663339,-500.0,0.00036986,3]
[310270006,1704426663349,-2369.49,0.00036986,3]
[310270007,1704426663359,-500.0,0.00036986,3]
[310270008,1704426663368,-500.0,0.00036986,3]
[310270009,1704426663378,-500.0,0.00036986,3]
[310270010,1704426663388,-500.0,0.00036986,3]
[310270011,1704426663397,-500.0,0.00036986,3]
[310270012,1704426663406,-500.0,0.00036986,3]
[310270013,1704426663424,-500.0,0.00036986,3]
[310270014,1704426663436,-500.0,0.00036986,3]
[310270015,1704426663447,-500.0,0.00036986,3]
[310270016,1704426663457,-1047.44,0.00036986,3]
[310270017,1704426663467,-500.0,0.00036986,3]
[310270018,1704426663477,-500.0,0.00036986,3]
[310270019,1704426663486,-500.0,0.00036986,3]
[310270020,1704426663497,-500.0,0.00036986,3]
[310270021,1704426663510,-500.0,0.00036986,3]
[310270022,1704426663520,-500.0,0.00036986,3]
[310270023,1704426663532,-829.4,0.00036986,3]
[310270024,1704426663543,-641.05,0.00036986,3]
[310270025,1704426663553,-500.0,0.00036986,3]
[310270026,1704426663562,-595.45,0.00036986,3]
[310270027,1704426663572,-670.02,0.00036986,3]
[310270028,1704426663582,-500.0,0.00036986,3]
[310270029,1704426663591,-500.0,0.00036986,3]
[310270030,1704426663601,-500.0,0.00036986,3]
[310270031,1704426663611,-1507.93,0.00036986,3]
[310270032,1704426663622,-500.0,0.00036986,3]
[310270033,1704426663632,-500.0,0.00036986,3]
[310270034,1704426663642,-223.61027874,0.00036986,3]
[310270035,1704426663654,-854.4,0.00036986,3]
[310270036,1704426663663,-6296.63,0.00036986,3]
[310270037,1704426663673,-500.0,0.00036986,3]
[310270038,1704426663683,-500.0,0.00036986,3]
[310270039,1704426663692,-1242.44,0.00036986,3]
[310270040,1704426663702,-500.0,0.00036986,3]
[310270041,1704426663711,-609.99,0.00036986,3]
[310270042,1704426663721,-702.9,0.00036986,3]
[310270043,1704426663731,-500.0,0.00036986,3]
[310270044,1704426663743,-998.14,0.00036986,3]
[310270045,1704426663752,-500.0,0.00036986,3]
[310270046,1704426663762,-500.0,0.00036986,3]
[310270047,1704426663772,-500.0,0.00036986,3]
[310270048,1704426663782,-1175.59,0.00036986,3]
[310270049,1704426663793,-500.0,0.00036986,3]
[310270050,1704426663803,-500.0,0.00036986,3]
[310270051,1704426663815,-500.0,0.00036986,3]
[310270052,1704426663825,-500.0,0.00036986,3]
[310270053,1704426663836,-500.0,0.00036986,3]
[310270054,1704426663847,-535.25961121,0.00036986,3]
[310270055,1704426663858,-2629.24,0.00036986,3]
[310270056,1704426663868,-500.0,0.00036986,3]
[310270057,1704426663878,-749.33,0.00036986,3]
[310270058,1704426663888,-601.92,0.00036986,3]
[310270059,1704426663898,-500.0,0.00036986,3]
[310270060,1704426663907,-1845.39,0.00036986,3]
[310270061,1704426663917,-500.0,0.00036986,3]
[310270062,1704426663926,-500.0,0.00036986,3]
[310270063,1704426663936,-500.0,0.00036986,3]
[310270064,1704426663946,-500.0,0.00036986,3]
[310270065,1704426663955,-585.01,0.00036986,3]
[310270066,1704426663966,-499.69038485,0.00036986,3]
[310270067,1704426663976,-2516.38,0.00036986,3]
[310270068,1704426663986,-500.0,0.00036986,3]
[310270069,1704426663996,-3188.88,0.00036986,3]
[310270070,1704426664006,-500.0,0.00036986,3]
[310270071,1704426664015,-500.0,0.00036986,3]
[310270072,1704426664025,-2269.54,0.00036986,3]
[310270073,1704426664034,-1048.62,0.00036986,3]
[310270074,1704426664044,-500.0,0.00036986,3]
[310270075,1704426664054,-500.0,0.00036986,3]
[310270076,1704426664064,-500.0,0.00036986,3]
[310270077,1704426664074,-500.0,0.00036986,3]
[310270078,1704426664083,-500.0,0.00036986,3]
[310270079,1704426664093,-500.0,0.00036986,3]
[310270080,1704426664102,-1600.87,0.00036986,3]
[310270081,1704426664111,-500.0,0.00036986,3]
[310270082,1704426664121,-500.0,0.00036986,3]
[310270083,1704426664131,-151.0,0.00036986,7]
[310270084,1704426664146,-151.0,0.00036986,7]
[310270085,1704426664155,-151.0,0.00036986,7]
[310270086,1704426664165,-151.0,0.00036986,7]
[310270087,1704426664174,-151.0,0.00036986,7]
[310270088,1704426664183,-186.844514,0.00036986,7]
[310270089,1704426664193,-152.272227,0.00036986,7]
[310270090,1704426664202,-168.76259,0.00036986,7]
[310270091,1704426664211,-151.744311,0.00036986,7]
[310270092,1704426664221,-151.0,0.00036986,7]
[310270093,1704426664230,-151.0,0.00036986,7]
[310270094,1704426664240,-234.40105,0.00036998,2]
[310270095,1704426664249,-308.97420983,0.00037,4]
[310270096,1704426664258,-165.6909776,0.00037,2]
[310270097,1704426664268,-605.04284187,0.00037,4]
[310270098,1704426664277,-20000.0,0.00037,2]
[310270099,1704426664286,-500.0,0.00037,3]
[310270100,1704426664296,-221.31152824,0.00037002,3]
[310270101,1704426664305,-2000.0,0.00037075,2]
[310270102,1704426664314,-245.77,0.00037075,2]
[310270103,1704426664323,-234.40105,0.00037098,2]
[310270104,1704426664333,-581.69266271,0.00037175,9]
[310270105,1704426664343,-581.69266265,0.00037175,9]
[310270106,1704426664352,-234.40105,0.00037188,4]
[310270107,1704426664363,-234.40105,0.00037198,2]
[310270108,1704426664373,-809.37261274,0.0003724,4]
[310270109,1704426664383,-165.64,0.0003726,2]
[310270110,1704426664393,-667.98,0.0003726,3]
[310270111,1704426664402,-163.954117,0.0003726,7]
[310270112,1704426664412,-500.0,0.0003726,3]
[310270113,1704426664421,-500.0,0.0003726,3]
[310270114,1704426664431,-350.51368866,0.0003726,3]
[310270115,1704426664441,-500.0,0.0003726,3]
[310270116,1704426664450,-500.0,0.0003726,3]
[310270117,1704426664460,-500.0,0.0003726,3]
[310270118,1704426664469,-500.0,0.0003726,3]
[310270119,1704426664478,-500.0,0.0003726,3]
[310270120,1704426664488,-500.0,0.0003726,3]
[310270121,1704426664497,-228.48703906,0.0003726,3]
[310270122,1704426664506,-500.0,0.0003726,3]
[310270123,1704426664515,-549.60132599,0.0003726,3]
[310270124,1704426664525,-500.0,0.0003726,3]
[310270125,1704426664536,-174.26537806,0.0003726,3]
[310270126,1704426664545,-519.26,0.0003726,3]
[310270127,1704426664555,-500.0,0.0003726,3]
[310270128,1704426664564,-500.0,0.0003726,3]
[310270129,1704426664574,-202.84777627,0.0003726,3]
[310270130,1704426664583,-496.67860384,0.0003726,3]
[310270131,1704426664592,-500.0,0.0003726,3]
[310270132,1704426664602,-283.2022012,0.0003726,3]
[310270133,1704426664611,-500.0,0.0003726,3]
[310270134,1704426664621,-500.0,0.0003726,3]
[310270135,1704426664630,-539.46581134,0.0003726,3]
[310270136,1704426664640,-188.24583783,0.0003726,3]
[310270137,1704426664650,-500.0,0.0003726,3]
[310270138,1704426664659,-500.0,0.0003726,3]
[310270139,1704426664669,-500.0,0.0003726,3]
[310270140,1704426664679,-629.33200618,0.0003726,3]
[310270141,1704426664688,-500.0,0.0003726,3]
[310270142,1704426664698,-500.0,0.0003726,3]
[310270143,1704426664708,-591.03,0.0003726,3]
[310270144,1704426664717,-318.16006181,0.0003726,3]
[310270145,1704426664727,-500.0,0.0003726,3]
[310270146,1704426665062,-500.0,0.0003726,3]
[310270147,1704426665073,-504.25,0.0003726,3]
[310270148,1704426665084,-500.0,0.0003726,3]
[310270149,1704426665094,-500.0,0.0003726,3]
[310270150,1704426665105,-500.0,0.0003726,3]
[310270151,1704426665115,-171.45566849,0.0003726,3]
[310270152,1704426665126,-690.84,0.0003726,3]
[310270153,1704426665137,-500.0,0.0003726,3]
[310270154,1704426665148,-500.0,0.0003726,3]
[310270155,1704426665158,-500.0,0.0003726,3]
[310270156,1704426665169,-1472.06,0.0003726,3]
[310270157,1704426665179,-2696.47,0.0003726,3]
[310270158,1704426665189,-504.84,0.0003726,3]
[310270159,1704426665199,-500.0,0.0003726,3]
[310270160,1704426665210,-500.0,0.0003726,3]
[310270161,1704426665220,-3658.31,0.0003726,3]
[310270162,1704426665229,-724.31,0.0003726,3]
[310270163,1704426665239,-500.0,0.0003726,3]
[310270164,1704426665249,-3809.35,0.0003726,3]
[310270165,1704426665259,-639.774433,0.0003726,3]
[310270166,1704426665269,-500.0,0.0003726,3]
[310270167,1704426665278,-2426.03,0.0003726,3]
[310270168,1704426665287,-158.048915,0.0003726,7]
[310270169,1704426665297,-500.0,0.0003726,3]
[310270170,1704426665307,-2276.94,0.0003726,3]
[310270171,1704426665317,-649.27,0.0003726,3]
[310270172,1704426665327,-500.0,0.0003726,3]
[310270173,1704426665336,-151.0,0.0003726,7]
[310270174,1704426665347,-157.63269,0.0003726,7]
[310270175,1704426665357,-157.798269,0.0003726,7]
[310270176,1704426665367,-857.38,0.0003726,3]
[310270177,1704426665378,-989.21,0.0003726,3]
[310270178,1704426665388,-548.22298631,0.0003726,3]
[310270179,1704426665398,-1101.54,0.0003726,3]
[310270180,1704426665409,-530.91,0.0003726,3]
[310270181,1704426665418,-500.0,0.0003726,3]
[310270182,1704426665428,-4044.87,0.0003726,3]
[310270183,1704426665438,-1525.19,0.0003726,3]
[310270184,1704426665447,-959.81,0.0003726,3]
[310270185,1704426665457,-618.600043,0.0003726,7]
[310270186,1704426665467,-608.2,0.0003726,3]
[310270187,1704426665476,-607.53126903,0.0003726,3]
[310270188,1704426665486,-618.600043,0.0003726,7]
[310270189,1704426665495,-1536.58,0.0003726,3]
[310270190,1704426665505,-500.0,0.0003726,3]
[310270191,1704426665514,-614.8,0.0003726,3]
[310270192,1704426665523,-151.0,0.0003726,7]
[310270193,1704426665533,-617.87,0.0003726,3]
[310270194,1704426665542,-1198.95,0.0003726,3]
[310270195,1704426665552,-622.5,0.0003726,3]
[310270196,1704426665562,-500.0,0.0003726,3]
[310270197,1704426665571,-151.0,0.0003726,7]
[310270198,1704426665580,-500.0,0.0003726,3]
[310270199,1704426665590,-1617.97,0.0003726,3]
[310270200,1704426665600,-289.000866,0.0003726,7]
[310270201,1704426665609,-571.01,0.0003726,3]
[310270202,1704426665619,-961.92,0.0003726,3]
[310270203,1704426665630,-500.0,0.0003726,3]
[310270204,1704426665639,-500.0,0.0003726,3]
[310270205,1704426665647,-504.63,0.0003726,3]
[310270206,1704426665656,-1085.34,0.0003726,3]
[310270207,1704426665664,-500.0,0.0003726,3]
[310270208,1704426665674,-500.0,0.0003726,3]
[310270209,1704426665684,-940.61,0.0003726,3]
[310270210,1704426665693,-500.0,0.0003726,3]
[310270211,1704426665703,-674.03,0.0003726,3]
[310270212,1704426665713,-752.67,0.0003726,3]
[310270213,1704426665723,-500.0,0.0003726,3]
[310270214,1704426665732,-1972.87,0.0003726,3]
[310270215,1704426665742,-500.0,0.0003726,3]
[310270216,1704426665751,-621.19,0.0003726,3]
[310270217,1704426665761,-1403.18,0.0003726,3]
[310270218,1704426665770,-822.72,0.0003726,3]
[310270219,1704426665780,-771.9,0.0003726,3]
[310270220,1704426665789,-847.37,0.0003726,3]
[310270221,1704426665798,-500.0,0.0003726,3]
[310270222,1704426665808,-170.11343327,0.0003726,3]
[310270223,1704426665817,-414.92955349,0.0003726,3]
[310270224,1704426665827,-500.0,0.0003726,3]
[310270225,1704426665837,-500.0,0.0003726,3]
[310270226,1704426665847,-865.75,0.0003726,3]
[310270227,1704426665857,-1363.94,0.0003726,3]
[310270228,1704426665867,-4604.97,0.0003726,3]
[310270229,1704426665878,-1152.91,0.0003726,3]
[310270230,1704426665888,-500.0,0.0003726,3]
[310270231,1704426665898,-500.0,0.0003726,3]
[310270232,1704426665908,-713.57,0.0003726,3]
[310270233,1704426665917,-361.86047204,0.0003726,3]
[310270234,1704426665927,-833.72,0.0003726,3]
[310270235,1704426665936,-10636.52,0.0003726,3]
[310270236,1704426665946,-1032.64,0.0003726,3]
[310270237,1704426665956,-577.17,0.0003726,3]
[310270238,1704426665965,-697.16,0.0003726,3]
[310270239,1704426665974,-706.13,0.0003726,3]
[310270240,1704426665984,-462.27728733,0.0003726,3]
[310270241,1704426665993,-500.0,0.0003726,3]
[310270242,1704426666003,-500.0,0.0003726,3]
[310270243,1704426666013,-500.0,0.0003726,3]
[310270244,1704426666023,-2369.49,0.0003726,3]
[310270245,1704426666033,-500.0,0.0003726,3]
[310270246,1704426666043,-500.0,0.0003726,3]
[310270247,1704426666053,-500.0,0.0003726,3]
[310270248,1704426666063,-500.0,0.0003726,3]
[310270249,1704426666073,-634.48,0.0003726,3]
[310270250,1704426666083,-500.0,0.0003726,3]
[310270251,1704426666093,-500.0,0.0003726,3]
[310270252,1704426666103,-500.0,0.0003726,3]
[310270253,1704426666113,-500.0,0.0003726,3]
[310270254,1704426666123,-1047.44,0.0003726,3]
[310270255,1704426666133,-500.0,0.0003726,3]
[310270256,1704426666143,-500.0,0.0003726,3]
[310270257,1704426666153,-500.0,0.0003726,3]
[310270258,1704426666163,-500.0,0.0003726,3]
[310270259,1704426666173,-500.0,0.0003726,3]
[310270260,1704426666182,-500.0,0.0003726,3]
[310270261,1704426666193,-641.05,0.0003726,3]
[310270262,1704426666203,-829.4,0.0003726,3]
[310270263,1704426666212,-500.0,0.0003726,3]
[310270264,1704426666222,-595.45,0.0003726,3]
[310270265,1704426666232,-670.02,0.0003726,3]
[310270266,1704426666241,-500.0,0.0003726,3]
[310270267,1704426666251,-500.0,0.0003726,3]
[310270268,1704426666261,-500.0,0.0003726,3]
[310270269,1704426666271,-1507.93,0.0003726,3]
[310270270,1704426666281,-418.78353016,0.0003726,3]
[310270271,1704426666291,-500.0,0.0003726,3]
[310270272,1704426666301,-854.4,0.0003726,3]
[310270273,1704426666311,-6296.63,0.0003726,3]
[310270274,1704426666321,-500.0,0.0003726,3]
[310270275,1704426666331,-500.0,0.0003726,3]
[310270276,1704426666342,-1242.44,0.0003726,3]
[310270277,1704426666353,-500.0,0.0003726,3]
[310270278,1704426666368,-609.99,0.0003726,3]
[310270279,1704426666379,-702.9,0.0003726,3]
[310270280,1704426666389,-500.0,0.0003726,3]
[310270281,1704426666400,-998.14,0.0003726,3]
[310270282,1704426666412,-500.0,0.0003726,3]
[310270283,1704426666422,-500.0,0.0003726,3]
[310270284,1704426666433,-500.0,0.0003726,3]
[310270285,1704426666443,-1175.59,0.0003726,3]
[310270286,1704426666453,-500.0,0.0003726,3]
[310270287,1704426666463,-500.0,0.0003726,3]
[310270288,1704426666474,-500.0,0.0003726,3]
[310270289,1704426666484,-500.0,0.0003726,3]
[310270290,1704426666494,-500.0,0.0003726,3]
[310270291,1704426666505,-2629.24,0.0003726,3]
[310270292,1704426666516,-500.0,0.0003726,3]
[310270293,1704426666527,-749.33,0.0003726,3]
[310270294,1704426666538,-601.92,0.0003726,3]
[310270295,1704426666549,-500.0,0.0003726,3]
[310270296,1704426666561,-1845.39,0.0003726,3]
[310270297,1704426666573,-500.0,0.0003726,3]
[310270298,1704426666583,-208.58717119,0.0003726,3]
[310270299,1704426666594,-500.0,0.0003726,3]
[310270300,1704426666604,-500.0,0.0003726,3]
[310270301,1704426666615,-585.01,0.0003726,3]
[310270302,1704426666627,-2516.38,0.0003726,3]
[310270303,1704426666638,-500.0,0.0003726,3]
[310270304,1704426666649,-3188.88,0.0003726,3]
[310270305,1704426666659,-500.0,0.0003726,3]
[310270306,1704426666669,-500.0,0.0003726,3]
[310270307,1704426666679,-2269.54,0.0003726,3]
[310270308,1704426666689,-162.6074231,0.0003726,3]
[310270309,1704426666720,-886.0125769,0.0003726,3]
[310270310,1704426666732,-500.0,0.0003726,3]
[310270311,1704426666743,-500.0,0.0003726,3]
[310270312,1704426666755,-500.0,0.0003726,3]
[310270313,1704426666766,-168.7110206,0.0003726,3]
[310270314,1704426666777,-170.7379823,0.0003726,3]
[310270315,1704426666788,-1600.87,0.0003726,3]
[310270316,1704426666798,-566.04959342,0.0003726,3]
[310270317,1704426666809,-234.40105,0.00037298,2]
[310270318,1704426666818,-12733.66711088,0.00037342,15]
[310270319,1704426666829,-825.0,0.00037369,20]
[310270320,1704426666838,-362.0,0.00037369,20]
[310270321,1704426666848,-234.40105,0.00037388,4]
[310270322,1704426666857,-215.97400947,0.00037391,10]
[310270323,1704426666867,-208.417773,0.00037395,2]
[310270324,1704426666878,-265.491312,0.00037395,2]
[310270325,1704426666888,-234.40105,0.00037398,2]
[310270326,1704426666898,-6598.63,0.000374,7]
[310270327,1704426666908,-11172.27,0.000374,7]
[310270328,1704426666918,-500.0,0.00037435,2]
[310270329,1704426666927,-153.84,0.00037443,2]
[310270330,1704426666938,-1505.64806425,0.00037483,2]
[310270331,1704426666948,-150.0,0.00037491,2]
[310270332,1704426666958,-234.40105,0.00037498,2]
[310270333,1704426666974,-201.0,0.00037516,5]
[310270334,1704426666983,-165.64,0.00037534,2]
[310270335,1704426666995,-667.98,0.00037534,3]
[310270336,1704426667004,-500.0,0.00037534,3]
[310270337,1704426667014,-537.52781309,0.00037534,3]
[310270338,1704426667024,-500.0,0.00037534,3]
[310270339,1704426667039,-500.0,0.00037534,3]